bitfinex-derivatives/quotes_BNBF0:USTF0_20250316
["timestamp","ask_amount","ask_price","bid_price","bid_amount"]
[1742089428071,0.32567985,614.1,612.81,1.329]
[1742089429577,0.2838233,614.09,612.81,1.329]
[1742089429973,0.32569576,614.07,612.81,1.329]
[1742089432582,0.28382098,614.06,612.81,1.329]
[1742089432778,0.32571168,614.04,612.81,1.329]
[1742089437480,0.28380015,614.03,612.81,1.329]
[1742089437675,0.32572228,614.02,612.81,1.329]
[1742089438580,0.2838233,614.01,612.81,1.329]
[1742089438882,0.32573289,614.0,612.81,1.329]
[1742089442080,0.28375965,613.99,612.81,1.329]
[1742089442279,0.3257435,613.98,612.81,1.329]
[1742089442683,0.3257435,613.98,612.81,2.501]
[1742089447787,0.3257435,613.98,612.82,0.3263601]
[1742089449186,2.46432273,614.53,612.82,0.3263601]
[1742089449382,0.32546256,614.51,612.83,1.249]
[1742089449587,0.32546256,614.51,612.84,0.32634945]
[1742089451489,0.32546256,614.51,612.85,1.491]
[1742089451691,0.32546256,614.51,612.86,0.3263388]
[1742089451891,2.46432273,614.32,612.86,0.3263388]
[1742089452088,0.32556852,614.31,612.86,0.3263388]
[1742089461501,0.60924374,614.31,612.86,0.3263388]
[1742089462199,0.32556852,614.31,612.86,0.3263388]
[1742089462600,0.60926456,614.31,612.86,0.3263388]
[1742089463797,0.60926456,614.31,612.87,1.209]
[1742089464000,0.60926456,614.31,612.88,0.32632815]
[1742089464599,2.46432273,614.3,612.88,0.32632815]
[1742089464903,0.32557912,614.29,612.88,0.32632815]
[1742089466604,0.32557912,614.29,612.89,1.182]
[1742089466805,0.32557912,614.29,612.9,0.3263175]
[1742089467199,0.32557912,614.29,612.9,1.9263175]
[1742089472807,0.32557912,614.29,612.9,3.3243175]
[1742089474704,0.32557912,614.29,612.9,4.7703175]
[1742089478216,2.46432273,614.28,612.9,4.7703175]
[1742089478508,0.32558972,614.27,612.9,4.7703175]
[1742089481506,0.28369719,614.26,612.9,4.7703175]
[1742089481709,0.32560032,614.25,612.9,4.7703175]
[1742089484511,0.28372726,614.24,612.9,4.7703175]
[1742089484909,0.32561622,614.22,612.9,4.7703175]
[1742089485310,0.32561622,614.22,612.9,4.444]
[1742089486512,0.28377238,614.21,612.9,4.444]
[1742089486812,0.32563213,614.19,612.9,4.444]
[1742089487610,2.46432273,613.99,612.9,4.444]
[1742089488010,0.3257435,613.98,612.9,4.444]
[1742089497219,0.3257435,613.98,612.9,5.489]
[1742089504532,0.28381635,613.97,612.9,5.489]
[1742089504827,0.32575412,613.96,612.9,5.489]
[1742089520351,2.46432273,613.88,612.9,5.489]
[1742089521952,2.46432273,613.88,612.9,6.528]
[1742089522756,0.32575412,613.96,612.9,6.528]
[1742089523550,0.60954733,613.96,612.9,6.528]
[1742089526857,0.32575412,613.96,612.9,6.528]
[1742089527256,2.46432273,613.95,612.9,6.528]
[1742089528960,0.32575412,613.96,612.9,6.528]
[1742089545769,0.28379205,613.95,612.9,6.528]
[1742089545966,0.32577003,613.93,612.9,6.528]
[1742089546569,0.2838476,613.92,612.9,6.528]
[1742089546766,0.32578065,613.91,612.9,6.528]
[1742089569878,2.46432273,614.2,612.91,1.37961614]
[1742089570079,2.46432273,614.2,612.92,1.37961081]
[1742089570284,2.46432273,614.35,612.93,1.37960549]
[1742089570480,2.46432273,614.35,612.94,1.37873332]
[1742089570678,2.46432273,614.35,612.95,1.37872799]
[1742089570879,2.46432273,614.35,612.96,1.37872267]
[1742089571082,2.46432273,614.35,612.95,1.15809503]
[1742089571083,2.46432273,614.35,612.97,3.0625381]
[1742089571279,2.46432273,614.35,612.98,1.05243711]
[1742089571482,2.46432273,614.35,612.99,1.3787067]
[1742089571680,2.46432273,614.35,613.0,1.05161965]
[1742089571881,2.46432273,614.35,613.01,1.05161965]
[1742089572083,2.46432273,614.35,613.02,1.05161965]
[1742089572381,2.46432273,614.35,613.03,0.3262483]
[1742089572587,2.46432273,614.52,613.03,0.3262483]
[1742089572986,2.46432273,614.52,613.04,1.15809503]
[1742089573189,0.32546256,614.51,613.04,1.15809503]
[1742089573379,0.32546256,614.51,613.05,0.32623766]
[1742089573786,0.32546256,614.51,613.05,3.68623766]
[1742089574179,0.32546256,614.51,613.05,4.91423766]
[1742089574586,2.46432273,614.49,613.05,4.91423766]
[1742089576090,0.32546256,614.51,613.05,4.91423766]
[1742089578691,0.28361049,614.5,613.05,4.91423766]
[1742089578991,0.32547315,614.49,613.05,4.91423766]
[1742089581793,0.28361858,614.48,613.05,4.91423766]
[1742089582692,0.32548375,614.47,613.05,4.91423766]
[1742089587792,0.28364285,614.46,613.05,4.91423766]
[1742089587996,0.32549964,614.44,613.05,4.91423766]
[1742089590596,0.28365095,614.43,613.05,4.91423766]
[1742089590892,0.32551023,614.42,613.05,4.91423766]
[1742089594996,0.32551023,614.42,613.05,4.588]
[1742089595500,0.32551023,614.42,613.05,6.17]
[1742089602610,0.28370066,614.41,613.05,6.17]
[1742089602809,0.32552613,614.39,613.05,6.17]
[1742089611809,0.28365673,614.38,613.05,6.17]
[1742089612013,0.32553672,614.37,613.05,6.17]
[1742089614618,0.28366019,614.36,613.05,6.17]
[1742089614811,0.32554732,614.35,613.05,6.17]
[1742089620720,0.28366366,614.34,613.05,6.17]
[1742089621118,0.32556322,614.32,613.05,6.17]
[1742089626029,0.32556322,614.32,613.05,7.65]
[1742089627830,0.28368332,614.31,613.05,7.65]
[1742089628030,0.32557382,614.3,613.05,7.65]
[1742089629824,0.60924673,614.3,613.05,7.65]
[1742089632130,0.32557382,614.3,613.05,7.65]
[1742089635538,2.46432273,614.19,613.05,7.65]
[1742089636932,2.46432273,614.24,613.05,7.65]
[1742089637131,0.32561092,614.23,613.05,7.65]
[1742089646048,2.46432273,614.22,613.05,7.65]
[1742089646548,0.32562153,614.21,613.05,7.65]
[1742089659963,2.46432273,613.93,613.05,7.65]
[1742089662065,2.46432273,614.0,613.05,7.65]
[1742089663867,2.46432273,614.03,613.05,7.65]
[1742089665861,2.46432273,614.04,613.05,7.65]
[1742089667368,2.46432273,614.2,613.05,7.65]
[1742089668271,2.78994956,614.2,613.05,7.65]
[1742089668768,0.32563213,614.19,613.05,7.65]
[1742089678274,2.46432273,614.18,613.05,7.65]
[1742089678477,0.32564273,614.17,613.05,7.65]
[1742089679980,2.46432273,614.16,613.05,7.65]
[1742089680180,2.78997076,614.16,613.05,7.65]
[1742089680376,0.32565334,614.15,613.05,7.65]
[1742089689593,2.46432273,613.96,613.05,7.65]
[1742089692290,0.32565334,614.15,613.05,7.65]
[1742089692291,2.46432273,613.91,613.05,7.65]
[1742089695092,0.32565334,614.15,613.05,7.65]
[1742089695093,2.46432273,613.75,613.05,7.65]
[1742089697094,2.46432273,613.7,613.05,7.65]
[1742089698596,2.46432273,613.67,613.05,7.65]
[1742089700588,2.46432273,613.72,613.05,7.65]
[1742089702795,2.46432273,613.81,613.05,7.65]
[1742089705095,2.46432273,613.9,613.05,7.65]
[1742089707797,2.46432273,614.09,613.05,7.65]
[1742089709892,2.46432273,614.12,613.05,7.65]
[1742089711798,2.46432273,614.07,613.05,7.65]
[1742089713594,2.46432273,613.97,613.05,7.65]
[1742089715900,2.46432273,614.02,613.05,7.65]
[1742089718610,2.46432273,613.95,613.05,7.65]
[1742089720611,2.46432273,613.95,613.05,7.97623766]
[1742089720813,2.46432273,614.04,613.05,7.97623766]
[1742089723518,0.32565334,614.15,613.05,7.97623766]
[1742089730827,0.32565334,614.15,613.05,7.65]
[1742089737731,2.46432273,614.02,613.05,7.65]
[1742089741923,2.46432273,613.93,613.05,7.65]
[1742089745632,2.46432273,614.12,613.05,7.65]
[1742089748634,2.46432273,614.11,613.05,7.65]
[1742089750328,2.46432273,614.06,613.05,7.65]
[1742089752433,2.46432273,614.11,613.05,7.65]
[1742089757439,2.46432273,614.12,613.05,7.65]
[1742089759843,0.32565334,614.15,613.05,7.65]
[1742089767248,2.46432273,613.88,613.05,7.65]
[1742089769245,2.46432273,613.86,613.05,7.65]
[1742089771652,2.46432273,614.14,613.05,7.65]
[1742089771851,2.78998137,614.14,613.05,7.65]
[1742089773755,0.32565864,614.14,613.05,7.65]
[1742089781560,2.46432273,614.1,613.05,7.65]
[1742089783360,2.46432273,614.11,613.05,7.65]
[1742089784260,0.32567985,614.1,613.05,7.65]
[1742089785859,0.28376081,614.09,613.05,7.65]
[1742089786053,0.32569046,614.08,613.05,7.65]
[1742089788859,0.28375618,614.07,613.05,7.65]
[1742089789061,0.32570107,614.06,613.05,7.65]
[1742089792065,0.28376544,614.05,613.05,7.65]
[1742089792264,0.32571168,614.04,613.05,7.65]
[1742089794767,0.28377354,614.03,613.05,7.65]
[1742089794963,0.32572228,614.02,613.05,7.65]
[1742089797764,0.28380478,614.01,613.05,7.65]
[1742089797964,0.3257382,613.99,613.05,7.65]
[1742089800874,0.28381867,613.98,613.05,7.65]
[1742089801176,0.32575412,613.96,613.05,7.65]
[1742089803980,0.28377816,613.95,613.05,7.65]
[1742089804178,0.32576473,613.94,613.05,7.65]
[1742089806879,0.28380246,613.93,613.05,7.65]
[1742089807081,0.32577534,613.92,613.05,7.65]
[1742089809882,0.28380478,613.91,613.05,7.65]
[1742089810282,0.32578595,613.9,613.05,7.65]
[1742089812783,0.28380709,613.89,613.05,7.65]
[1742089812976,0.32579657,613.88,613.05,7.65]
[1742089821784,0.28383487,613.87,613.05,7.65]
[1742089821985,0.32580718,613.86,613.05,7.65]
[1742089824889,0.28384413,613.85,613.05,7.65]
[1742089825084,0.3258178,613.84,613.05,7.65]
[1742089827993,0.28384645,613.83,613.05,7.65]
[1742089828189,0.32582841,613.82,613.05,7.65]
[1742089829597,2.46432273,613.75,613.05,7.65]
[1742089829788,0.32587088,613.74,613.05,7.65]
[1742089851698,0.28388697,613.73,613.05,7.65]
[1742089851898,0.3258815,613.72,613.05,7.65]
[1742089852300,0.3258815,613.72,613.05,4.38396223]
[1742089852601,0.3258815,613.72,613.05,4.29]
[1742089854805,0.28389044,613.71,613.05,4.29]
[1742089855001,0.32589212,613.7,613.05,4.29]
[1742089855306,0.32589212,613.7,613.05,1.02404672]
[1742089855503,0.32589212,613.7,611.99,0.28380825]
[1742089855704,0.32589212,613.7,612.06,1.485]
[1742089855901,0.32589212,613.7,612.07,0.32676001]
[1742089856500,0.32589212,613.7,612.08,1.18113826]
[1742089856703,0.32589212,613.7,612.09,0.32674933]
[1742089857507,2.46432273,613.63,612.09,0.32674933]
[1742089857808,0.32593461,613.62,612.09,0.32674933]
[1742089860908,2.46432273,613.39,612.09,0.32674933]
[1742089862507,0.32593461,613.62,612.09,0.32674933]
[1742089863811,0.28403642,613.61,612.09,0.32674933]
[1742089864003,0.32594524,613.6,612.09,0.32674933]
[1742089866903,0.28404221,613.59,612.09,0.32674933]
[1742089867210,0.32595586,613.58,612.09,0.32674933]
[1742089873814,0.32595586,613.58,612.1,1.17894024]
[1742089874015,0.32595586,613.58,612.11,0.32673865]
[1742089879017,0.32595586,613.58,612.12,1.6]
[1742089879322,0.32595586,613.58,612.13,0.32672798]
[1742089880919,0.32595586,613.58,612.14,1.148]
[1742089881117,0.32595586,613.58,612.15,0.3267173]
[1742089881715,0.2840283,613.57,612.15,0.3267173]
[1742089881920,0.32596649,613.56,612.15,0.3267173]
[1742089885024,0.28403062,613.55,612.15,0.3267173]
[1742089885225,0.32597711,613.54,612.15,0.3267173]
[1742089886724,0.32597711,613.54,612.15,1.8647173]
[1742089887826,0.28406656,613.53,612.15,1.8647173]
[1742089888026,0.32598774,613.52,612.15,1.8647173]
[1742089890829,0.28408511,613.51,612.15,1.8647173]
[1742089891429,0.32600368,613.49,612.15,1.8647173]
[1742089892232,2.46432273,613.36,612.15,1.538]
[1742089892532,0.32607809,613.35,612.15,1.538]
[1742089893838,0.28415354,613.34,612.15,1.538]
[1742089894133,0.32609404,613.32,612.15,1.538]
[1742089899837,0.28418603,613.31,612.15,2.906]
[1742089900040,0.32610999,613.29,612.15,2.906]
[1742089901744,2.46432273,613.15,612.15,2.906]
[1742089901944,0.32618977,613.14,612.15,2.906]
[1742089909148,0.28414774,613.13,612.15,2.906]
[1742089909348,0.32620041,613.12,612.15,2.906]
[1742089911851,0.28421968,613.11,612.15,2.906]
[1742089912145,0.32621105,613.1,612.15,2.906]
[1742089920155,0.32621105,613.1,612.15,3.925]
[1742089920958,0.28426612,613.09,612.15,3.925]
[1742089921154,0.28426612,613.09,612.15,4.955]
[1742089923060,0.32622702,613.07,612.15,4.955]
[1742089923963,0.28428237,613.06,612.15,4.955]
[1742089924760,0.32624298,613.04,612.15,4.955]
[1742089929955,0.28428818,613.03,612.15,4.955]
[1742089930363,0.32625895,613.01,612.15,4.955]
[1742089931258,2.46432273,612.75,612.15,6.51]
[1742089931459,2.46432273,612.75,612.15,4.972]
[1742089931664,0.32640271,612.74,612.15,3.604]
[1742089932964,0.28434973,612.73,612.15,3.604]
[1742089933159,0.28434973,612.73,612.15,2.585]
[1742089933663,0.32641336,612.72,612.15,2.585]
[1742089935565,2.46432273,612.63,612.15,2.585]
[1742089935867,0.32646665,612.62,612.15,2.585]
[1742089952375,0.32646665,612.62,612.15,1.03]
[1742089956282,0.32646665,612.62,612.06,2.18]
[1742089959889,0.32646665,612.62,612.06,3.331]
[1742089963790,2.46432273,613.29,612.06,3.331]
[1742089963993,5.67321309,619.51,612.06,3.331]
[1742089963994,0.32612063,613.27,612.06,3.331]
[1742089964194,0.32612063,613.27,612.06,4.752]
[1742089964592,0.32612063,613.27,612.06,5.882]
[1742089964991,0.28415122,613.26,612.06,5.882]
[1742089965289,0.32613126,613.25,612.06,5.882]
[1742089965888,0.28417558,613.24,612.06,5.882]
[1742089966494,2.46432273,613.18,612.06,5.882]
[1742089966693,0.32617381,613.17,612.06,5.882]
[1742089968991,0.28418371,613.16,612.06,5.882]
[1742089969791,0.32617381,613.17,612.06,5.882]
[1742089971794,0.28420227,613.16,612.06,5.882]
[1742089971996,0.32618445,613.15,612.06,5.882]
[1742089973899,2.46432273,613.14,612.06,5.882]
[1742089974097,0.32619509,613.13,612.06,5.882]
[1742089974896,0.28422897,613.12,612.06,5.882]
[1742089975293,0.32621105,613.1,612.06,5.882]
[1742089977999,0.28423129,613.09,612.06,5.882]
[1742089978199,0.3262217,613.08,612.06,5.882]
[1742089986799,2.46432273,613.04,612.06,5.882]
[1742089987002,0.3262483,613.03,612.06,5.882]
[1742089988702,2.46432273,612.86,612.06,5.882]
[1742089989101,0.32634412,612.85,612.06,5.882]
[1742089990106,0.28429863,612.84,612.06,5.882]
[1742089990406,0.32635478,612.83,612.06,5.882]
[1742089992807,2.46432273,612.8,612.06,5.882]
[1742089993007,0.32637608,612.79,612.06,5.882]
[1742089994308,2.46432273,612.7,612.06,5.882]
[1742089994507,0.32642935,612.69,612.06,5.882]
[1742089996207,0.28436716,612.68,612.06,2.551]
[1742089996408,0.32644,612.67,612.06,0.58818578]
[1742089996608,0.32644,612.67,610.73,1.62606143]
[1742089996808,0.32644,612.67,610.74,3.60810326]
[1742089997010,0.32644,612.67,610.75,4.72083405]
[1742089997206,0.32644,612.67,610.77,0.3274555]
[1742089997507,0.32644,612.67,610.78,6.55216341]
[1742089997702,0.32644,612.67,610.8,0.32743942]
[1742089997903,0.32644,612.67,610.81,3.70077462]
[1742089998106,0.32644,612.67,610.83,0.32742334]
[1742089998306,0.32644,612.67,610.84,1.38001582]
[1742089998507,0.32644,612.67,610.86,0.32740726]
[1742089998808,0.32644,612.67,610.87,2.63801582]
[1742089999005,0.32644,612.67,610.89,0.32739118]
[1742089999202,0.32644,612.67,610.9,1.38001582]
[1742089999410,0.32644,612.67,610.92,0.3273751]
[1742089999606,0.32644,612.67,610.93,0.30055387]
[1742089999805,0.32644,612.67,610.95,0.32735903]
[1742090000005,0.32644,612.67,610.96,0.62791152]
[1742090000205,0.32644,612.67,610.97,0.95525983]
[1742090000405,0.32644,612.67,610.98,1.40628742]
[1742090000602,0.32644,612.67,610.99,3.76038759]
[1742090000906,0.32644,612.67,611.0,3.76032294]
[1742090001107,0.32644,612.67,611.01,1.40627135]
[1742090001408,0.32644,612.67,611.02,1.40626599]
[1742090001605,0.32644,612.67,611.03,2.25706978]
[1742090001805,0.32644,612.67,611.04,1.07894447]
[1742090002003,0.28450084,612.66,611.05,1.07894447]
[1742090002310,0.28450084,612.66,611.02,0.32732152]
[1742090002504,0.32645066,612.65,611.03,1.0786783]
[1742090002704,0.32645066,612.65,611.04,1.40598911]
[1742090002907,0.32645066,612.65,611.05,1.07867804]
[1742090003103,0.32645066,612.65,611.06,0.3273001]
[1742090004811,0.32645066,612.65,611.07,6.67103831]
[1742090005012,0.32645066,612.65,611.09,0.32728403]
[1742090005309,0.32645066,612.65,611.1,6.67103831]
[1742090005510,0.32645066,612.65,611.11,8.38590729]
[1742090005710,0.32645066,612.65,611.13,1.71486898]
[1742090005910,0.32645066,612.65,611.14,8.38590729]
[1742090006107,0.32645066,612.65,611.15,6.67103831]
[1742090006307,0.32645066,612.65,611.16,6.67103831]
[1742090006508,0.32645066,612.65,611.17,6.9982795]
[1742090006704,0.32645066,612.65,611.19,0.32723048]
[1742090006908,0.32645066,612.65,611.2,6.67103831]
[1742090007104,0.32645066,612.65,611.22,0.32721442]
[1742090007306,0.32645066,612.65,611.23,6.67103831]
[1742090007511,0.32645066,612.65,611.25,0.32719836]
[1742090007711,0.32645066,612.65,611.26,4.51485742]
[1742090007912,0.32645066,612.65,611.28,0.3271823]
[1742090008111,0.32645066,612.65,611.29,6.4913014]
[1742090008312,0.32645066,612.65,611.3,1.70548177]
[1742090008511,0.32645066,612.65,611.31,1.07838064]
[1742090008704,0.32645066,612.65,611.32,1.07838064]
[1742090008909,0.32645066,612.65,611.33,1.07838064]
[1742090009212,0.32645066,612.65,611.34,1.07838064]
[1742090009411,0.32645066,612.65,611.35,1.40552548]
[1742090009608,0.32645066,612.65,611.37,0.32713414]
[1742090009811,0.32645066,612.65,611.38,1.07838064]
[1742090010113,0.32645066,612.65,611.39,1.40550408]
[1742090010307,0.32645066,612.65,611.4,1.40549872]
[1742090010508,0.32645066,612.65,611.41,1.40549337]
[1742090010711,0.32645066,612.65,611.42,1.40512932]
[1742090010914,0.32645066,612.65,611.43,1.40512397]
[1742090011212,0.32645066,612.65,611.44,1.40511862]
[1742090011406,0.32645066,612.65,611.45,0.32709134]
[1742090014213,2.46432273,613.23,611.46,1.07784064]
[1742090014414,0.32615254,613.21,611.48,0.32707529]
[1742090014611,0.32615254,613.21,611.49,2.25472552]
[1742090014814,0.32615254,613.21,611.51,0.32705924]
[1742090015010,0.32615254,613.21,611.52,1.07783603]
[1742090015210,0.28425915,613.2,611.53,1.70464592]
[1742090015515,0.28425915,613.2,611.54,2.03168912]
[1742090015711,0.28425915,613.2,611.55,0.62680989]
[1742090015910,0.28425915,613.2,611.56,3.42898623]
[1742090016114,0.28425915,613.2,611.57,3.42898623]
[1742090016314,0.32616317,613.19,611.58,3.75600804]
[1742090016518,0.32616317,613.19,611.59,3.75600269]
[1742090016713,0.32616317,613.19,611.6,3.75599734]
[1742090017017,0.32616317,613.19,611.61,2.03152733]
[1742090017317,0.32616317,613.19,611.62,1.40483645]
[1742090017512,0.32616317,613.19,611.63,1.07783603]
[1742090017715,0.32616317,613.19,611.64,1.07783603]
[1742090018016,0.32616317,613.19,611.65,1.07783603]
[1742090018217,0.32616317,613.19,611.66,1.07783603]
[1742090018415,0.32616317,613.19,611.67,1.07783603]
[1742090018615,0.32616317,613.19,611.68,1.07783603]
[1742090018816,0.32616317,613.19,611.69,1.07783603]
[1742090019017,0.32616317,613.19,611.7,1.07783603]
[1742090019212,0.32616317,613.19,611.71,1.07783603]
[1742090019414,0.32616317,613.19,611.72,1.07783603]
[1742090019615,0.32616317,613.19,611.69,1.17688949]
[1742090019817,0.32616317,613.19,611.73,1.17688949]
[1742090020017,0.32616317,613.19,611.74,1.07715513]
[1742090020217,0.32616317,613.19,611.74,1.17688949]
[1742090020814,0.32616317,613.19,611.75,1.07694515]
[1742090021017,0.32616317,613.19,611.74,1.17688949]
[1742090021213,0.32616317,613.19,611.75,0.32693093]
[1742090021513,0.32616317,613.19,611.75,1.50382042]
[1742090021915,0.32616317,613.19,611.75,0.32693093]
[1742090022516,0.32616317,613.19,611.76,1.07674754]
[1742090022714,0.32616317,613.19,611.75,0.32693093]
[1742090022913,0.2842104,613.18,611.75,0.32693093]
[1742090023116,0.32617381,613.17,611.75,0.32693093]
[1742090027926,0.32617381,613.17,611.76,1.541]
[1742090028127,0.32617381,613.17,611.77,0.32692024]
[1742090028429,0.32617381,613.17,611.77,1.72492024]
[1742090040038,0.32617381,613.17,611.78,1.17345629]
[1742090040236,0.32617381,613.17,611.79,0.32690956]
[1742090045145,0.32617381,613.17,611.79,1.90590956]
[1742090045645,0.32617381,613.17,611.79,3.35890956]
[1742090046540,0.32617381,613.17,611.79,4.78890956]
[1742090047344,0.32617381,613.17,611.79,6.12790956]
[1742090048543,2.46432273,612.94,611.79,6.12790956]
[1742090050151,2.46432273,612.87,611.79,6.12790956]
[1742090053858,2.46432273,612.85,611.79,6.12790956]
[1742090056057,2.46432273,613.05,611.79,6.12790956]
[1742090058257,2.46432273,613.0,611.79,6.12790956]
[1742090058652,2.46432273,613.0,611.8,1.0761612]
[1742090058857,2.46432273,613.0,611.81,3.124739]
[1742090059055,2.46432273,613.0,611.82,3.12470956]
[1742090059255,2.46432273,613.0,611.83,1.40304938]
[1742090059457,2.46432273,613.0,611.84,3.12559108]
[1742090059657,2.46432273,613.0,611.85,3.12554687]
[1742090059854,2.46432273,613.0,611.86,1.40303336]
[1742090060054,2.46432273,613.0,611.87,3.73094499]
[1742090060256,2.46432273,613.0,611.89,0.32685613]
[1742090060457,2.46432273,613.0,611.9,3.40407818]
[1742090060655,0.32617381,613.17,611.91,3.73184006]
[1742090060859,0.32617381,613.17,611.92,3.40499461]
[1742090061059,0.32617381,613.17,611.93,3.40502726]
[1742090061258,0.32617381,613.17,611.94,3.12612934]
[1742090061461,0.32617381,613.17,611.92,3.0546371]
[1742090061462,0.32617381,613.17,611.95,3.126124]
[1742090061663,0.32617381,613.17,611.96,3.12611866]
[1742090061856,0.32617381,613.17,611.79,4.222]
[1742090061857,0.32617381,613.17,611.97,3.12611332]
[1742090062057,0.32617381,613.17,611.98,3.12610798]
[1742090062257,0.32617381,613.17,611.99,3.12610264]
[1742090062457,0.32617381,613.17,612.0,1.40295858]
[1742090062755,0.32617381,613.17,612.01,1.40295324]
[1742090062961,0.32617381,613.17,612.02,1.4029479]
[1742090063157,0.32617381,613.17,612.03,1.40294256]
[1742090063358,0.32617381,613.17,612.04,0.32677602]
[1742090064360,0.32617381,613.17,612.05,1.07929579]
[1742090064557,0.32617381,613.17,612.06,0.32676534]
[1742090064961,0.32617381,613.17,612.07,1.07923848]
[1742090065162,0.32617381,613.17,612.06,1.78376534]
[1742090065960,0.32617381,613.17,612.07,1.07913084]
[1742090066164,0.32617381,613.17,612.08,0.32675467]
[1742090067563,0.32617381,613.17,612.09,1.0787448]
[1742090067762,0.32617381,613.17,612.1,0.32674399]
[1742090068466,0.32617381,613.17,612.11,1.07858032]
[1742090068669,0.32617381,613.17,612.12,0.32673332]
[1742090069168,2.46432273,613.68,612.13,1.07874371]
[1742090069370,0.32590806,613.67,612.14,1.40546635]
[1742090069566,0.32590806,613.67,612.15,1.40546101]
[1742090069765,0.32590806,613.67,612.16,1.40545568]
[1742090069970,0.28399701,613.66,612.17,1.40545034]
[1742090070164,0.32591868,613.65,612.18,1.405445]
[1742090070369,0.32591868,613.65,612.19,0.32669596]
[1742090071075,0.28399817,613.64,612.19,0.32669596]
[1742090071281,0.3259293,613.63,612.19,0.32669596]
[1742090073976,0.28402367,613.62,612.19,0.32669596]
[1742090074174,0.32593992,613.61,612.19,0.32669596]
[1742090077080,0.28406076,613.6,612.2,1.464]
[1742090077275,0.32595586,613.58,612.2,1.464]
[1742090082876,0.28408511,613.57,612.2,1.464]
[1742090083983,0.28408511,613.57,612.21,1.281]
[1742090085186,2.46432273,613.52,612.21,1.281]
[1742090085379,0.32599837,613.5,612.21,1.281]
[1742090085983,0.28409323,613.49,612.21,1.281]
[1742090086187,0.32601431,613.47,612.21,1.281]
[1742090089079,0.28409671,613.46,612.21,1.281]
[1742090089384,0.32603025,613.44,612.21,1.281]
[1742090091887,0.28409323,613.43,612.21,1.281]
[1742090092081,0.32604088,613.42,612.21,1.281]
[1742090094289,0.32604088,613.42,612.22,1.505]
[1742090094990,0.28408163,613.41,612.22,1.505]
[1742090095286,0.32605151,613.4,612.22,1.505]
[1742090098187,0.28408395,613.39,612.22,1.505]
[1742090098388,0.32606214,613.38,612.22,1.505]
[1742090099398,0.32606214,613.38,612.23,1.301]
[1742090099894,0.32606214,613.38,612.23,1.62767461]
[1742090100291,0.32606214,613.38,612.24,1.459]
[1742090100491,0.32606214,613.38,612.25,0.32666394]
[1742090105294,2.46432273,614.07,612.25,0.32666394]
[1742090105497,0.32570637,614.05,612.25,0.32666394]
[1742090105995,0.28391013,614.04,612.25,0.32666394]
[1742090106795,0.32570637,614.05,612.25,0.32666394]
[1742090106992,0.28391244,614.03,612.25,0.32666394]
[1742090107490,0.32572759,614.01,612.25,0.32666394]
[1742090109889,0.28397963,614.0,612.25,0.32666394]
[1742090110094,0.3257435,613.98,612.25,0.32666394]
[1742090112096,2.46432273,613.81,612.25,0.32666394]
[1742090112295,0.32584434,613.79,612.25,0.32666394]
[1742090112492,0.32584434,613.79,612.24,1.459]
[1742090112999,0.28405613,613.78,612.24,1.459]
[1742090113296,0.32586027,613.76,612.24,1.459]
[1742090114096,2.46432273,613.26,612.24,1.459]
[1742090114296,0.32613126,613.25,612.24,1.459]
[1742090115900,0.32613126,613.25,612.25,0.948]
[1742090117007,0.32613126,613.25,612.26,1.279]
[1742090122611,0.32613126,613.25,612.27,1.473]
[1742090122811,0.32613126,613.25,612.27,2.977]
[1742090133022,0.32613126,613.25,612.27,4.551]
[1742090137125,0.32613126,613.25,612.27,5.836]
[1742090138123,0.28414426,613.24,612.27,5.836]
[1742090138324,0.3261419,613.23,612.27,5.836]
[1742090141030,0.28413614,613.22,612.27,5.836]
[1742090141227,0.32615254,613.21,612.27,5.836]
[1742090144028,0.28413846,613.2,612.27,5.836]
[1742090144230,0.32616317,613.19,612.27,5.836]
[1742090145131,0.32616317,613.19,612.27,7.372]
[1742090147030,0.28416282,613.18,612.27,7.372]
[1742090147232,0.32617913,613.16,612.27,7.372]
[1742090152134,0.28416282,613.15,612.27,7.372]
[1742090152334,0.32618977,613.14,612.27,7.372]
[1742090165644,2.46432273,613.13,612.27,7.372]
[1742090167845,2.46432273,613.1,612.27,7.372]
[1742090170546,2.46432273,613.12,612.27,7.372]
[1742090172345,0.32618977,613.14,612.27,7.372]